Cogmind - Beta 11 *** ADVENTURER MODE // 2022.04.21 @ 23:38:48 Player: Ms Vella Result: Destroyed by EF-OGO(z) with Makeshift Shrapnel Gun Performance ------------- Evolutions (4) 2000 Regions Visited (11) 2200 Robots Destroyed (120) 600 Value Destroyed (3983) 3983 Prototype IDs (34) 680 Alien Tech Used (0) 0 Bonus (881) 881 TOTAL SCORE: 10344 Bonus ------- High Alert Combat Kills 281 Aligned with FarCom 300 Met Imprinter 300 Cogmind --------- Core Integrity 0/850 Matter 272/300 Energy 92/170 System Corruption 49% Temperature Cool (0) Movement Walking (210) Ox1 Location -6/Zion Parts ------- > --- POWER (1) -------- Makeshift Power Source > --- PROPULSION (3) --- Makeshift Leg Makeshift Leg Makeshift Leg > --- UTILITY (9) ------ Improved Heat Sink High-capacity Storage Unit Makeshift Sensor Array Improved Terrain Scan Processor Improved Terrain Scan Processor Seismic Detector Particle Charger Makeshift Hacking Suite Mobile Refinery Mk. CCLXVII > --- WEAPON (2) ------- Heavy Riot Gun Barrage Gun > --- INVENTORY (20) --- Light Nuclear Core Makeshift Power Source Light Treads Makeshift Leg High-capacity Matter Pod (29) Authchip [R/NC] Authchip [R/Combat] Authchip [R/Combat] Authchip [Device] Authchip [Weapon] Component Analysis Suite Improved Recalibrator Hacking Drone Bay (1/1) Bomb Factory No. 2 Advanced Beam Cannon Cooled Plasma Cannon Longsword +1 Peak State ------------ > --- POWER ------------ Makeshift Power Source > --- PROPULSION ------- Makeshift Leg Makeshift Leg Makeshift Leg > --- UTILITY ---------- Improved Heat Sink High-capacity Storage Unit Improved Trap Scanner Makeshift Sensor Array Improved Terrain Scan Processor Improved Terrain Scan Processor Particle Charger Hardened Light Armor Plating Makeshift Hacking Suite > --- WEAPON ----------- Cooled Plasma Cannon Bore Cannon > --- INVENTORY -------- Light Nuclear Core Makeshift Power Source Light Treads High-capacity Matter Pod Authchip [R/NC] Authchip [R/Combat] Authchip [R/Combat] Authchip [Device] Authchip [Weapon] Component Analysis Suite Mobile Refinery Mk. CCLXVII Improved Recalibrator Hacking Drone Bay Bomb Factory No. 2 Heavy Riot Gun Advanced Beam Cannon Barrage Gun Enhanced Autogun Longsword +1 [Rating: 66] Favorites ----------- Power Micro Nuclear Core Engine Ion Engine Power Core Micro Nuclear Core Propulsion Improved Carbon-fiber Leg Treads Medium Treads Leg Improved Carbon-fiber Leg Utility High-capacity Storage Unit Device Shield Generator Storage High-capacity Storage Unit Processor Improved Terrain Scan Processor Hackware System Shield Protection Improved Light Armor Plating Weapon Advanced Beam Cannon Energy Gun EM Pulse Gun Energy Cannon Advanced Beam Cannon Ballistic Gun Assault Rifle Ballistic Cannon Bore Cannon Launcher Rocket Launcher Slashing Weapon Longsword +1 Build | -11 -10 -10 -10 -9 -8 -8 -8 -6 -6 -6 -6 ------- Run | Scr Mat Min Exi Min Mat Sto Rec Fac Low Low Zio Slots Evolved 8 | . . . . . 4 . . 4 . . . Power . | . . . . . . . . . . . . Propulsion 1 | . . . . . 1 . . . . . . Utility 7 | . . . . . 3 . . 4 . . . Weapon . | . . . . . . . . . . . . Parts Attached 161 | 3 2 3 1 2 54 15 4 15 5 2 55 Power 9 | 1 . . . . 3 1 . . . . 4 Engine 4 | 1 . . . . 1 . . . . . 2 Core 5 | . . . . . 2 1 . . . . 2 Reactor . | . . . . . . . . . . . . Propulsion 38 | 1 . . 1 . 17 1 1 1 1 . 15 Treads 4 | . . . . . . . . . . . 4 Leg 34 | 1 . . 1 . 17 1 1 1 1 . 11 Wheel . | . . . . . . . . . . . . Hover . | . . . . . . . . . . . . Flight . | . . . . . . . . . . . . Utility 66 | . 1 1 . 1 14 9 3 13 4 2 18 Device 31 | . . . . . 5 4 . 5 1 1 15 Storage 6 | . 1 1 . . . 1 1 1 1 . . Processor 6 | . . . . . 2 . . 4 . . . Hackware 3 | . . . . . 1 1 . . . . 1 Protection 20 | . . . . 1 6 3 2 3 2 1 2 Artifact . | . . . . . . . . . . . . Weapon 48 | 1 1 2 . 1 20 4 . 1 . . 18 Energy Gun 10 | 1 1 . . . 6 . . . . . 2 Energy Cannon 12 | . . . . . 5 4 . 1 . . 2 Ballistic Gun 13 | . . 1 . . 5 . . . . . 7 Ballistic Cannon 1 | . . . . . . . . . . . 1 Launcher 9 | . . 1 . 1 2 . . . . . 5 Special Weapon . | . . . . . . . . . . . . Impact Weapon . | . . . . . . . . . . . . Slashing Weapon 3 | . . . . . 2 . . . . . 1 Piercing Weapon . | . . . . . . . . . . . . Special Melee Weapon . | . . . . . . . . . . . . Unidentified Prototypes 7 | . . . . . 3 1 . . . . 3 Corrupted Parts 10 | . . . . . 2 . . . . . 8 System Corruption 44 | . . . . . 3 . . . . . 41 Parts Lost 34 | . . . . . 10 3 . . 1 . 20 Power 4 | . . . . . 1 1 . . . . 2 Propulsion 10 | . . . . . 5 . . . . . 5 Utility 11 | . . . . . 1 2 . . 1 . 7 Weapon 9 | . . . . . 3 . . . . . 6 Highest Loss Streak 15 | . . . . . 7 1 . . 1 . 15 To Critical Strikes 3 | . . . . . . . . . . . 3 Average Slot Usage (%) 94 | . 85 85 85 89 92 99 100 97 99 100 95 Engine 4 | . 14 14 14 14 3 . . . . . 1 Core 4 | . . . . . 4 8 9 6 6 6 3 Leg 23 | . 28 28 28 28 24 26 27 20 19 20 16 Device 13 | . . . . . 9 17 18 25 21 20 18 Storage 8 | . 14 14 14 14 9 9 9 6 6 6 6 Processor 9 | . . . . . 8 . . 9 20 20 19 Hackware 2 | . . . . . 2 8 9 4 . . . Protection 7 | . . . . 3 12 9 9 9 10 13 9 Energy Gun 4 | . 14 14 14 14 5 . . . . . . Energy Cannon 9 | . . . . . 9 17 18 13 13 13 9 Ballistic Gun 3 | . 14 11 14 1 2 . . . . . 1 Naked Turns . | . . . . . . . . . . . . Heaviest Build 106 | 14 34 49 49 54 74 68 105 106 68 70 79 Greatest Support 76 | 20 20 20 20 20 54 54 54 54 53 53 76 Greatest Overweight (x) 21 | . 1 2 2 2 21 1 1 1 1 1 14 Average Overweight (x) 1 | . . 1 2 2 1 1 1 1 1 1 . Largest Inventory Capacity 35 | 8 15 20 20 20 20 20 25 25 35 20 20 Average Capacity 20 | 8 12 18 20 20 20 20 23 20 20 20 20 Most Carried 25 | 7 14 19 20 19 20 20 25 25 20 20 20 Average Carried 18 | 2 7 15 17 17 18 19 22 20 19 20 19 Final Capacity 25 | 8 15 20 20 20 20 20 25 20 20 20 20 Final Carried 25 | . 14 19 17 19 20 20 25 20 20 20 18 Class Distribution -------------------- 62% | Mutant 23% | Hacker-Mutant 9% | Scavenger-Mutant 5% | Skirmisher Dominant Class ---------------- Mutant | -10/Materials Mutant | -10/Mines Mutant | -10/Exiles Mutant | -9/Mines Skirmisher | -8/Materials Hacker-Mutant | -8/Storage Hacker-Mutant | -8/Recycling Hacker-Mutant | -6/Factory Mutant | -6/Lower Caves Mutant | -6/Lower Caves Mutant | -6/Zion Resources | -11 -10 -10 -10 -9 -8 -8 -8 -6 -6 -6 -6 ----------- Run | Scr Mat Min Exi Min Mat Sto Rec Fac Low Low Zio Matter Collected 2952 | 200 104 48 . 18 678 159 20 208 41 24 1452 Remotely . | . . . . . . . . . . . . Salvage Created 4926 | . 294 8 . 35 1467 808 32 440 238 62 1542 Parts 259 | . 18 4 . 5 76 43 4 18 7 1 83 Haulers Intercepted . | . . . . . . . . . . . . Recyclers Shooed 1 | . 1 . . . . . . . . . . Parts Field Recycled . | . . . . . . . . . . . . Retrieved Matter . | . . . . . . . . . . . . Parts Self-Destructed 10 | . . . . . . . . . 10 . . Prevented . | . . . . . . . . . . . . Kills | -11 -10 -10 -10 -9 -8 -8 -8 -6 -6 -6 -6 ------- Run | Scr Mat Min Exi Min Mat Sto Rec Fac Low Low Zio Combat Hostiles Destroyed 88 | . 5 3 . 4 30 16 3 7 3 2 15 Melee 2 | . . . . . 2 . . . . . . Guns 16 | . 5 . . . 10 . . . . . 1 Cannons 45 | . . . . . 9 15 3 6 2 2 8 AOE 18 | . . 3 . 4 7 . . . . . 4 Classes Destroyed 21 | . 5 . . . 6 . 1 2 2 1 4 Worker 3 | . 1 . . 1 1 . . . . . . Builder 1 | . . . . . 1 . . . . . . Recycler 1 | . 1 . . . . . . . . . . Minesweeper 1 | . . . . . . . . . 1 . . Mechanic 2 | . 1 . . . 1 . . . . . . Operator 2 | . . . . . 2 . . . . . . Drone 3 | . . . . . . . 3 . . . . Watcher 1 | . . . . . . . . 1 . . . Swarmer 13 | . 3 3 . 4 3 . . . . . . Grunt 31 | . 2 . . . 17 7 . 3 2 . . Brawler 1 | . . . . . 1 . . . . . . Duelist 2 | . . . . . 2 . . . . . . Sentry 14 | . . . . . 6 7 . 1 . . . Hunter 5 | . . . . . 1 2 . 2 . . . Programmer 2 | . . . . . . . . 1 . 1 . Behemoth 1 | . . . . . . . . . 1 . . Zionite 35 | . . . . . . . . . . . 35 Tinkerer 4 | . . . . . . . . . . . 4 Thief 1 | . . . . . . . . . . 1 . Surgeon 1 | . . . . . . . . . . . 1 Wasp 2 | . . . . . . . . . . . 2 Thug 1 | . . . . . . . . . . . 1 Savage 2 | . . . . . . . . . . . 2 Butcher 1 | . . . . . . . . . . . 1 Guerrilla 1 | . . . . . . . . . . . 1 Fireman 1 | . . . . . . . . . . . 1 Mutant 6 | . . . . . . . . . . . 6 Best Kill Streak 16 | . 3 3 . 5 5 4 1 3 2 2 16 Combat Bots Only 12 | . 3 3 . 4 4 4 1 3 2 2 12 Max Kills in Single Turn 5 | . 2 2 . 5 2 1 1 1 1 1 2 Gunslinging . | . . . . . . . . . . . . Exploded 4 | . . 2 . 4 2 . . . . . 1 Melee 1 | . . . . . 1 . . . . . . Uniques/NPCs Destroyed 1 | . . . . . . . . . . . 1 Imprinter (-6/Zion) Combat | -11 -10 -10 -10 -9 -8 -8 -8 -6 -6 -6 -6 -------- Run | Scr Mat Min Exi Min Mat Sto Rec Fac Low Low Zio Damage Taken 6552 | . 193 25 . 13 2258 554 . 430 168 26 2885 Core 1332 | . 28 8 . . 364 78 . 54 . . 800 Absorbed by Shields 220 | . . . . . . 38 . 111 57 9 5 Regen/Repaired (Parts) 330 | . 26 . . . 60 244 . . . . . Core Remaining (%) 68 | 100 . . . 85 . . 19 . . . . Volleys Fired 363 | . 28 2 . 1 105 42 6 19 28 3 129 Largest 2 | . 2 1 . 1 2 2 2 2 2 2 2 Hottest 173 | . 70 30 . 33 136 136 103 173 103 173 173 Shots Fired 618 | . 39 2 . 1 175 84 14 38 56 6 203 Gun 209 | . 39 . . . 101 . . . . . 69 Cannon 386 | . . . . . 66 84 14 38 56 6 122 Launcher 23 | . . 2 . 1 8 . . . . . 12 Special . | . . . . . . . . . . . . Kinetic 192 | . 18 . . . 40 . . . . . 134 Thermal 338 | . 6 . . . 83 84 14 38 56 6 51 Explosive 11 | . . 2 . 1 8 . . . . . . Electromagnetic 77 | . 15 . . . 44 . . . . . 18 Robot Hit Streak 36 | . 8 2 . 1 29 19 3 23 34 36 16 Robot Miss Streak 4 | . 2 1 . . 2 2 4 2 . 1 3 Penetration Max 1 | . . . . . . . . . . . 1 Secondary Targets 4 | . 3 . . . 1 . . . . . . Max Gunslinging Chain 1 | . 1 . . . 1 . . . . . . Shots Hit Robots 440 | . 23 1 . 1 148 65 7 34 25 5 131 Core Hits 209 | . 11 3 . 4 69 24 4 11 8 3 72 Critical Kills 11 | . . . . . 1 1 . . 1 . 8 Critical Parts Destroyed 12 | . . . . . . . . . . . 12 Critical Strikes 26 | . 1 . . . 3 1 . . 1 . 20 Burn 1 | . 1 . . . . . . . . . . Meltdown 3 | . . . . . 1 1 . . 1 . . Destroy 20 | . . . . . . . . . . . 20 Corrupt 1 | . . . . . 1 . . . . . . Sever 1 | . . . . . 1 . . . . . . Melee Attacks 14 | . . . . . 7 . . . . . 7 Impact . | . . . . . . . . . . . . Slashing 14 | . . . . . 7 . . . . . 7 Piercing . | . . . . . . . . . . . . Sneak Attacks . | . . . . . . . . . . . . Combat Hostiles . | . . . . . . . . . . . . Follow-up Attacks . | . . . . . . . . . . . . Damage Inflicted 12128 | . 381 197 . 271 3449 1633 217 943 558 278 4201 Guns 2334 | . 344 . . . 1082 . . . . . 908 Cannons 6900 | . . . . . 1124 1610 190 936 558 278 2204 Explosions 2545 | . 37 193 . 252 974 . . . . . 1089 Melee 256 | . . . . . 256 . . . . . . Ramming 93 | . . 4 . 19 13 23 27 7 . . . Kinetic 2153 | . 138 . . . 277 . . . . . 1738 Thermal 6966 | . 89 . . . 1506 1610 190 936 558 278 1799 Explosive 1317 | . . 193 . 252 872 . . . . . . Electromagnetic 1343 | . 154 . . . 525 . . . . . 664 Impact . | . . . . . . . . . . . . Slashing 256 | . . . . . 256 . . . . . . Piercing . | . . . . . . . . . . . . Highest Corruption 49 | . . . . . 3 3 3 . . . 49 Average Corruption 10 | . . . . . 1 3 3 . . . 40 Corruption Purged . | . . . . . . . . . . . . Corruption Blocked . | . . . . . . . . . . . . Effects 127 | . . . . . 16 14 27 . . . 70 Message Errors 21 | . . . . . 5 3 5 . . . 8 Matter Fused 33 | . . . . . 5 4 8 . . . 16 Heat Flow Errors 11 | . . . . . 1 1 3 . . . 6 Energy Discharges 16 | . . . . . 2 1 3 . . . 10 Parts Rejected 3 | . . . . . . 1 . . . . 2 Data Loss (minor) 8 | . . . . . . 3 2 . . . 3 Data Loss (major) 8 | . . . . . 1 1 3 . . . 3 Misfires 5 | . . . . . 1 . 2 . . . 2 Alerts 2 | . . . . . . . 1 . . . 1 Misdirections 4 | . . . . . . . . . . . 4 Weapon Failures 16 | . . . . . 1 . . . . . 15 Overload Shots 13 | . . . . . . . . 1 . 3 9 Effects 3 | . . . . . . . . . . 1 2 Heat Surge 2 | . . . . . . . . . . 1 1 Short Circuit 1 | . . . . . . . . . . . 1 Overflow Damage 323 | . . . . 20 37 32 . 58 19 45 112 Projectiles 179 | . . . . . 8 32 . 58 19 45 17 Explosions 144 | . . . . 20 29 . . . . . 95 Melee . | . . . . . . . . . . . . Knockbacks 8 | . . . . . . 1 . . . . 7 Impact 1 | . . . . . . 1 . . . . . Kinetic 7 | . . . . . . . . . . . 7 Secondary . | . . . . . . . . . . . . Self-Inflicted Damage 264 | . 8 . . . 33 . . . . . 223 Shots 11 | . 1 . . . 1 . . . . . 9 Rammed . | . . . . . . . . . . . . Targets Rammed 12 | . . 1 . 2 2 3 3 1 . . . Kicked 12 | . . 1 . 2 2 3 3 1 . . . Crushed . | . . . . . . . . . . . . Highest Temperature 689 | . 27 . . . 419 168 245 . . 247 689 Average Temperature 106 | . 14 . . . 121 28 114 . . 127 167 Received Heat Transfer 2122 | . 45 . . . 1215 247 . 85 18 . 512 Effects 18 | . . . . . 10 . . . . . 8 Shutdowns 4 | . . . . . 2 . . . . . 2 Energy Bleed 2 | . . . . . . . . . . . 2 Interference 4 | . . . . . 4 . . . . . . Matter Decay 1 | . . . . . . . . . . . 1 Short Circuit 2 | . . . . . 2 . . . . . . Damage (minor) 3 | . . . . . 2 . . . . . 1 Damage (major) 1 | . . . . . . . . . . . 1 Damage (core) 1 | . . . . . . . . . . . 1 Siege Activations . | . . . . . . . . . . . . Robots Corrupted 2 | . . . . . . . . . . . 2 Combat Hostiles 2 | . . . . . . . . . . . 2 Parts Fried 6 | . . . . . 2 . . . . . 4 Impact Corruptions . | . . . . . . . . . . . . Robots Melted 5 | . . . . . 2 1 . 1 1 . . Combat Hostiles 5 | . . . . . 2 1 . 1 1 . . Parts Melted 32 | . 1 . . . 6 5 . 9 6 1 4 Heat Transferred 10905 | . 272 . . . 2653 2579 311 1509 907 314 2360 Parts Sabotaged . | . . . . . . . . . . . . Parts Stolen . | . . . . . . . . . . . . Parts Stripped . | . . . . . . . . . . . . Power Chain Reactions 7 | . 1 . . . 2 . . . . . 4 Missiles Intercepted . | . . . . . . . . . . . . Alert | -11 -10 -10 -10 -9 -8 -8 -8 -6 -6 -6 -6 ------- Run | Scr Mat Min Exi Min Mat Sto Rec Fac Low Low Zio Peak Influence 1096 | . 166 116 . 128 536 375 134 1096 . . . Initial 915 | . . 1 . . 42 138 89 915 . . . Average 222 | . 56 41 . 99 339 235 29 904 . . . Maximum Alert Level 3 | . . . . . 2 1 . 3 . . . Low Security (%) 58 | 100 100 100 . 100 6 27 100 . . . . Level 1 25 | . . . . . 64 72 . . . . . Level 2 6 | . . . . . 28 . . . . . . Level 3 9 | . . . . . . . . 100 . . . Level 4 . | . . . . . . . . . . . . Level 5 . | . . . . . . . . . . . . High Security . | . . . . . . . . . . . . Max Security . | . . . . . . . . . . . . Squads Dispatched 11 | . . . . . 6 2 . 3 . . . Investigation 3 | . . . . . 1 1 . 1 . . . Extermination 2 | . . . . . . . . 2 . . . Reinforcement 3 | . . . . . 2 1 . . . . . Assault . | . . . . . . . . . . . . Garrison 3 | . . . . . 3 . . . . . . Intercept . | . . . . . . . . . . . . Searches Triggered 1 | . . . . . . . . 1 . . . Construction Impeded . | . . . . . . . . . . . . Haulers Reinforced . | . . . . . . . . . . . . Active Scanning Responses . | . . . . . . . . . . . . Cargo Convoy Interrupts . | . . . . . . . . . . . . Stealth | -11 -10 -10 -10 -9 -8 -8 -8 -6 -6 -6 -6 --------- Run | Scr Mat Min Exi Min Mat Sto Rec Fac Low Low Zio Distress Signals 7 | . . . . . 2 3 . 1 . . 1 Communications Jammed . | . . . . . . . . . . . . Distress Signals . | . . . . . . . . . . . . Times Spotted 218 | . 10 3 . 4 57 20 49 14 3 2 56 Peak Tracking Total 16 | . 3 3 . 4 6 4 4 4 2 1 16 Tactical Retreats 12 | . . . . . 6 . . . . . 6 Traps | -11 -10 -10 -10 -9 -8 -8 -8 -6 -6 -6 -6 ------- Run | Scr Mat Min Exi Min Mat Sto Rec Fac Low Low Zio Traps Triggered 3 | . . . . . 1 1 . 1 . . . Indirectly . | . . . . . . . . . . . . Trap Hack Attempts . | . . . . . . . . . . . . Triggered . | . . . . . . . . . . . . Disarmed . | . . . . . . . . . . . . Reprogrammed . | . . . . . . . . . . . . Reused . | . . . . . . . . . . . . Traps Extracted . | . . . . . . . . . . . . Installed 3 | . . . 3 . . . . . . . . Triggered . | . . . . . . . . . . . . Most Traps Carried 3 | . . 3 3 . . . . . . . . Machines | -11 -10 -10 -10 -9 -8 -8 -8 -6 -6 -6 -6 ---------- Run | Scr Mat Min Exi Min Mat Sto Rec Fac Low Low Zio Machines Disabled 5 | . . . . . 4 . . . . . 1 Max in Single Turn 1 | . . . . . 1 . . . . . 1 Garrison Access 1 | . . . . . . 1 . . . . . Machines Sabotaged . | . . . . . . . . . . . . Garrisons Compromised . | . . . . . . . . . . . . Overloaded Fab Kills . | . . . . . . . . . . . . Hacking | -11 -10 -10 -10 -9 -8 -8 -8 -6 -6 -6 -6 --------- Run | Scr Mat Min Exi Min Mat Sto Rec Fac Low Low Zio Machines Accessed 27 | . 2 . 2 . 5 10 6 1 1 . . Terminals 18 | . 1 . . . 3 7 6 1 . . . Fabricators . | . . . . . . . . . . . . Repair Stations 3 | . 1 . . . 1 1 . . . . . Recycling Units 2 | . . . . . 1 1 . . . . . Scanalyzers . | . . . . . . . . . . . . Garrison Access 1 | . . . . . . 1 . . . . . Total Hacks 81 | . 7 . 2 . 17 26 27 1 1 . . Successful 44 | . 3 . 2 . 8 19 11 . 1 . . Failed 37 | . 4 . . . 9 7 16 1 . . . Catastrophic 7 | . 1 . . . . . 5 1 . . . Database Lockouts . | . . . . . . . . . . . . Manual 37 | . 5 . 1 . 11 8 12 . . . . Terminals 58 | . 4 . . . 8 18 27 1 . . . Fabricators . | . . . . . . . . . . . . Repair Stations 13 | . 3 . . . 6 4 . . . . . Recycling Units 4 | . . . . . 3 1 . . . . . Scanalyzers . | . . . . . . . . . . . . Garrison Access 3 | . . . . . . 3 . . . . . Terminal Hacks 29 | . . . 2 . 4 11 11 . 1 . . Record 1 | . . . 1 . . . . . . . . Part Schematic 6 | . . . . . . 3 3 . . . . Robot Schematic 4 | . . . . . 2 1 1 . . . . Robot Analysis 1 | . . . . . . . 1 . . . . Prototype ID Bank 2 | . . . . . . 1 1 . . . . Open Door 4 | . . . . . . 3 . . 1 . . Level Access Points 1 | . . . . . . 1 . . . . . Branch Access Points 2 | . . . . . 1 1 . . . . . Alert Level 3 | . . . . . 1 1 1 . . . . Unreport Threat 3 | . . . . . . . 3 . . . . Transport Status 1 | . . . . . . . 1 . . . . EX-Prototype ID Bank 1 | . . . 1 . . . . . . . . Fabricator Hacks . | . . . . . . . . . . . . Repair Station Hacks 10 | . 2 . . . 4 4 . . . . . Scan Component 5 | . 1 . . . 2 2 . . . . . Repair 5 | . 1 . . . 2 2 . . . . . Recycling Unit Hacks . | . . . . . . . . . . . . Scanalyzer . | . . . . . . . . . . . . Garrison Access Hacks 2 | . . . . . . 2 . . . . . Unlock Access 1 | . . . . . . 1 . . . . . Seal Access 1 | . . . . . . 1 . . . . . Unauthorized Hacks 3 | . 1 . . . . 2 . . . . . Terminals 1 | . . . . . . 1 . . . . . Botnet 1 | . . . . . . 1 . . . . . Fabricators . | . . . . . . . . . . . . Repair Stations 1 | . 1 . . . . . . . . . . Mechanics 1 | . 1 . . . . . . . . . . Recycling Units 1 | . . . . . . 1 . . . . . Recyclers 1 | . . . . . . 1 . . . . . Scanalyzers . | . . . . . . . . . . . . Garrison Access . | . . . . . . . . . . . . Data Cores Recovered . | . . . . . . . . . . . . Used . | . . . . . . . . . . . . Hacking Detections 16 | . 1 . . . 5 4 5 1 . . . Full Trace Events 3 | . . . . . 1 1 1 . . . . Feedback Events . | . . . . . . . . . . . . Feedback Blocked . | . . . . . . . . . . . . Robot Schematics Acquired 7 | . . . . . 2 1 1 . . . 3 Robots Built . | . . . . . . . . . . . . Authchips . | . . . . . . . . . . . . Time . | . . . . . . . . . . . . Total Robot Build Rating . | . . . . . . . . . . . . Part Schematics Acquired 19 | . . . . . . 3 3 . . . 13 Parts Built . | . . . . . . . . . . . . Authchips . | . . . . . . . . . . . . Time . | . . . . . . . . . . . . Total Part Build Rating . | . . . . . . . . . . . . Parts Repaired 5 | . 1 . . . 2 2 . . . . . Time 145 | . 26 . . . 55 64 . . . . . Parts Recycled . | . . . . . . . . . . . . Recycled Matter . | . . . . . . . . . . . . Retrieved Matter . | . . . . . . . . . . . . Retrieved Components . | . . . . . . . . . . . . Parts Scanalyzed . | . . . . . . . . . . . . Part Schematics Acquired . | . . . . . . . . . . . . Parts Damaged . | . . . . . . . . . . . . Bothacking | -11 -10 -10 -10 -9 -8 -8 -8 -6 -6 -6 -6 ------------ Run | Scr Mat Min Exi Min Mat Sto Rec Fac Low Low Zio Used RIF Installer . | . . . . . . . . . . . . Robots Hacked . | . . . . . . . . . . . . Non-combat . | . . . . . . . . . . . . Combat . | . . . . . . . . . . . . Robot Hacks Applied . | . . . . . . . . . . . . Relay Couplers Released . | . . . . . . . . . . . . Fabnet Peak Effective % . | . . . . . . . . . . . . Robots Rewired . | . . . . . . . . . . . . Allies Hacked . | . . . . . . . . . . . . Hacks Repelled . | . . . . . . . . . . . . Allies | -11 -10 -10 -10 -9 -8 -8 -8 -6 -6 -6 -6 -------- Run | Scr Mat Min Exi Min Mat Sto Rec Fac Low Low Zio Total Allies 10 | . . 2 . . . . . . . . 8 Largest Group 8 | . . 2 2 . . . . . . . 8 Highest-Rated Group 203 | . . 42 42 . . . . . . . 203 Highest-Rated Ally 39 | . . 31 31 . . . . . . . 39 Total Orders . | . . . . . . . . . . . . Ally Attacks . | . . . . . . . . . . . . Total Damage . | . . . . . . . . . . . . Kills . | . . . . . . . . . . . . Allies Corrupted . | . . . . . . . . . . . . Allies Melted . | . . . . . . . . . . . . Intel | -11 -10 -10 -10 -9 -8 -8 -8 -6 -6 -6 -6 ------- Run | Scr Mat Min Exi Min Mat Sto Rec Fac Low Low Zio Robot Analysis Total 1 | . . . . . . . 1 . . . . Derelict Logs Recovered 4 | . . 2 . 1 . . . . . . 1 Drone Launches . | . . . . . . . . . . . . Drone Recoveries . | . . . . . . . . . . . . Exploration | -11 -10 -10 -10 -9 -8 -8 -8 -6 -6 -6 -6 ------------- Run | Scr Mat Min Exi Min Mat Sto Rec Fac Low Low Zio Turns Passed 13739 | 13 537 1121 1562 254 1562 908 1497 615 2072 789 2809 Spaces Moved 5066 | 1 263 465 597 94 511 342 755 247 413 203 1175 Core 11 | . . . . . 9 . . . . . 2 Treads 120 | . . . . . . . . . . . 120 Legs 4935 | 1 263 465 597 94 502 342 755 247 413 203 1053 Wheels . | . . . . . . . . . . . . Hover . | . . . . . . . . . . . . Flight . | . . . . . . . . . . . . Fastest Speed 120 | 120 120 190 260 260 190 190 190 190 190 193 163 Average Speed 206 | 120 159 237 260 260 214 190 190 190 192 193 194 Slowest Speed 1100 | 120 190 260 260 260 1100 190 190 190 193 193 750 Overloaded Moves . | . . . . . . . . . . . . Propulsion Burnouts . | . . . . . . . . . . . . Robots Hopped . | . . . . . . . . . . . . Cave-ins Triggered . | . . . . . . . . . . . . Exploration Rate (%) 54 | 2 44 91 93 26 49 66 99 4 55 37 89 Regions Visited 11 Branch Regions 8 Pre-discovered Areas 2 | . . 1 1 . . . . . . . . Known Exits Taken 4 | . . . . 1 1 1 . 1 . . . Unknown Exits Taken 7 | 1 1 1 1 . . . 1 . 1 1 . Scrap Searched 9 | . . 1 . 1 . . . . 2 1 4 Spaces Dug 13 | . . . . . . . . . 13 . . Terrain Destroyed 76 | . 1 15 . 11 19 4 2 1 18 . 5 Melee . | . . . . . . . . . . . . Projectile 30 | . . . . . . 4 2 1 18 . 5 AOE 46 | . 1 15 . 11 19 . . . . . . Terrain Rammed . | . . . . . . . . . . . . Walls Destroyed . | . . . . . . . . . . . . Machines Disabled . | . . . . . . . . . . . . Actions | -11 -10 -10 -10 -9 -8 -8 -8 -6 -6 -6 -6 --------- Run | Scr Mat Min Exi Min Mat Sto Rec Fac Low Low Zio Total 7747 | 15 342 482 610 100 797 514 806 360 1635 595 1491 Wait 1930 | 4 26 4 . . 77 98 21 48 1185 386 81 Move 5055 | . 262 464 596 93 510 341 754 246 412 202 1175 Hop . | . . . . . . . . . . . . Pick Up 92 | 1 19 6 4 2 14 7 10 14 2 . 13 Fast Attach 69 | . 1 1 . 1 22 9 . . 3 1 31 Attach 41 | 1 . 1 . . 9 3 1 10 2 . 14 Detach 11 | . . . . . 3 . . 4 . . 4 Swap 51 | 2 1 1 1 1 23 3 3 5 . 1 10 Drop 105 | 7 5 2 6 . 25 8 7 13 3 2 27 Fire 363 | . 28 2 . 1 105 42 6 19 28 3 129 Melee 14 | . . . . . 7 . . . . . 7 Ram . | . . . . . . . . . . . . Kick 12 | . . 1 . 2 2 3 3 1 . . . Crush . | . . . . . . . . . . . . Escape Stasis . | . . . . . . . . . . . . Rewire 1 | . . . . . . . 1 . . . . Trap 3 | . . . 3 . . . . . . . . Miscellaneous . | . . . . . . . . . . . . Route ------- -11/Scrapyard -10/Materials -10/Mines (discovered 3 exits: [*Mat x2] / *Exi) -10/Exiles (discovered 2 exits: [*Min x2]) -9/Mines -8/Materials (discovered 3 exits: *Fac x2 / *Sto) -8/Storage (discovered 2 exits: Fac / *Rec) -8/Recycling -6/Factory -6/Lower Caves -6/Lower Caves -6/Zion (discovered 2 exits: [Dee] / [*Pro]) History --------- Turn | Location | Event 14 | -11/Scrapyard | Discovered new exit (range 0) 14 | -11/Scrapyard | Entered Materials 265 | -10/Materials | Repaired Lgt. Assault Rifle 307 | -10/Materials | Build established: Mutant 431 | -10/Materials | Discovered new exit (range 8) 551 | -10/Materials | Entered Mines 740 | -10/Mines | Learned location of Zion (-6) 744 | -10/Mines | Learned Materials emergency access door positions 787 | -10/Mines | Received a Rocket Launcher from a helpful Derelict 1161 | -10/Mines | Discovered new exit (range 9) 1348 | -10/Mines | Discovered new exit (range 11) 1598 | -10/Mines | Found a hidden stash of uninstalled traps 1645 | -10/Mines | Deemed a non-threat by the Exiles lab entrance 1648 | -10/Mines | Discovered new exit (range 5) 1672 | -10/Mines | Entered Exiles 1672 | -10/Exiles | Accompanied by 2 allies 1702 | -10/Exiles | Led the pair of lost Derelicts to a safe place 1737 | -10/Exiles | Met 8R-AWN 1781 | -10/Exiles | Met EX-HEX 1939 | -10/Exiles | Met EX-DEC 2063 | -10/Exiles | Met EX-BIN 2100 | -10/Exiles | Aligned with FarCom system 2102 | -10/Exiles | Given EX-Vault access code 2183 | -10/Exiles | Opened EX-Vault 2206 | -10/Exiles | Found Latent Energy Streamer 2210 | -10/Exiles | Found Longsword +1 2284 | -10/Exiles | Warned to stay clear of 0b10 Research branches 2451 | -10/Exiles | Discovered new exit (range 15) 2760 | -10/Exiles | Visited The Gauntlet 3200 | -10/Exiles | Discovered new exit (range 15) 3234 | -10/Exiles | Left Exiles lab with Longsword +1 3234 | -10/Exiles | Entered Mines 3293 | -9/Mines | Identified exit to Materials 3488 | -9/Mines | Entered Materials 3488 | -8/Materials | Evolved 4 slots: Propulsion x1, Utility x3 3926 | -8/Materials | Discovered new exit (range 8) 3972 | -8/Materials | Build established: Skirmisher 4100 | -8/Materials | Garrison activated, responded to threat 4191 | -8/Materials | Lost 7 parts (1p4n1u1w) 4231 | -8/Materials | Core integrity fell below 50% 4491 | -8/Materials | Identified exit to Storage 4620 | -8/Materials | Build established: Scavenger-Mutant 4837 | -8/Materials | Discovered new exit (range 16) 4904 | -8/Materials | Repaired Cooling System 4944 | -8/Materials | Repaired Corrupted Imp. Recalibrator? 4982 | -8/Materials | Build established: Hacker-Mutant 5050 | -8/Materials | Entered Storage 5189 | -8/Storage | Identified exit to Factory 5189 | -8/Storage | Identified exit to Recycling 5210 | -8/Storage | Identified exit to Garrison 5513 | -8/Storage | Repaired Hcp. Storage Unit 5552 | -8/Storage | Repaired Particle Charger 5846 | -8/Storage | Core integrity fell below 20% 5952 | -8/Storage | Used back door to open Recycling access 5958 | -8/Storage | Entered Recycling 6015 | -8/Recycling | Spotter reported a threat 6088 | -8/Recycling | Spotter reported a threat 6100 | -8/Recycling | Spotter reported a threat 6157 | -8/Recycling | Spotter reported a threat 6208 | -8/Recycling | Spotter reported a threat 6210 | -8/Recycling | Spotter reported a threat 6213 | -8/Recycling | Spotter reported a threat 6261 | -8/Recycling | Spotter reported a threat 6278 | -8/Recycling | Spotter reported a threat 6349 | -8/Recycling | Spotter reported a threat 6389 | -8/Recycling | Spotter reported a threat 6402 | -8/Recycling | Spotter reported a threat 6455 | -8/Recycling | Spotter reported a threat 6459 | -8/Recycling | Discovered new exit (range 16) 6501 | -8/Recycling | Spotter reported a threat 6598 | -8/Recycling | Spotter reported a threat 6653 | -8/Recycling | Spotter reported a threat 6674 | -8/Recycling | Spotter reported a threat 6686 | -8/Recycling | Spotter reported a threat 6706 | -8/Recycling | Spotter reported a threat 6739 | -8/Recycling | Spotter reported a threat 6760 | -8/Recycling | Spotter reported a threat 6761 | -8/Recycling | Spotter reported a threat 6766 | -8/Recycling | Spotter reported a threat 6799 | -8/Recycling | Spotter reported a threat 6819 | -8/Recycling | Spotter reported a threat 6906 | -8/Recycling | Spotter reported a threat 6917 | -8/Recycling | Spotter reported a threat 6925 | -8/Recycling | Spotter reported a threat 6978 | -8/Recycling | Spotter reported a threat 7023 | -8/Recycling | Spotter reported a threat 7036 | -8/Recycling | Spotter reported a threat 7088 | -8/Recycling | Spotter reported a threat 7089 | -8/Recycling | Spotter reported a threat 7089 | -8/Recycling | Spotter reported a threat 7096 | -8/Recycling | Spotter reported a threat 7149 | -8/Recycling | Spotter reported a threat 7154 | -8/Recycling | Spotter reported a threat 7173 | -8/Recycling | Spotter reported a threat 7202 | -8/Recycling | Spotter reported a threat 7247 | -8/Recycling | Spotter reported a threat 7268 | -8/Recycling | Spotter reported a threat 7288 | -8/Recycling | Spotter reported a threat 7300 | -8/Recycling | Spotter reported a threat 7305 | -8/Recycling | Spotter reported a threat 7317 | -8/Recycling | Spotter reported a threat 7330 | -8/Recycling | Spotter reported a threat 7353 | -8/Recycling | Spotter reported a threat 7358 | -8/Recycling | Spotter reported a threat 7370 | -8/Recycling | Spotter reported a threat 7383 | -8/Recycling | Spotter reported a threat 7410 | -8/Recycling | Spotter reported a threat 7433 | -8/Recycling | Spotter reported a threat 7437 | -8/Recycling | Spotter reported a threat 7455 | -8/Recycling | Entered Factory 7455 | -6/Factory | Evolved 4 slots: Utility x4 7805 | -6/Factory | Search patrols dispatched 7969 | -6/Factory | Discovered new exit (range 14) 8065 | -6/Factory | Identified exit to Lower Caves 8070 | -6/Factory | Entered Lower Caves 8272 | -6/Lower Caves | Encountered a Warlord checkpoint 8372 | -6/Lower Caves | Build established: Mutant 8471 | -6/Lower Caves | Spotted B-75 Beast 8687 | -6/Lower Caves | Destroyed B-75 Beast 10103 | -6/Lower Caves | Discovered new exit (range 6) 10142 | -6/Lower Caves | Entered another Lower Caves area 10864 | -6/Lower Caves | Discovered new exit (range 5) 10931 | -6/Lower Caves | Entered Zion 11026 | -6/Zion | Discovered new exit (range 12) 11118 | -6/Zion | Found Prototype Device 11118 | -6/Zion | Identified Bomb Factory No. 2 11452 | -6/Zion | Found Prototype Device 11452 | -6/Zion | Identified Mobile Refinery Mk. CCLXVII 11717 | -6/Zion | Gained Derelict followers 11799 | -6/Zion | Learned location of 1 exit from Factory 11964 | -6/Zion | Discovered new exit (range 11) 12022 | -6/Zion | Gained Derelict followers 12092 | -6/Zion | Given the Hacking Drone Bay 12092 | -6/Zion | Found Prototype Device 12092 | -6/Zion | Identified Hacking Drone Bay 12694 | -6/Zion | Rebuked by Imprinter 12730 | -6/Zion | Attempted to imprint without authorization 12730 | -6/Zion | Attacked by Zionites 12787 | -6/Zion | Core integrity fell below 50% 12823 | -6/Zion | Lost 15 parts (2p5n5u3w) 12831 | -6/Zion | System corruption reached 10% 12835 | -6/Zion | Destroyed 12 combat bots 12854 | -6/Zion | System corruption reached 30% 13126 | -6/Zion | Build established: Scavenger-Mutant 13168 | -6/Zion | Core integrity fell below 20% 13468 | -6/Zion | Destroyed Imprinter 13478 | -6/Zion | Extracted access codes from Imprinter's data core 13740 | -6/Zion | Destroyed by EF-OGO(z) with Makeshift Shrapnel Gun Last Messages --------------- 13675_ System corrupted: Energy discharge (-30). 13679_ LO-044(z) pulls a Mak. Spear out of the Twisted Machinery. 13682_ System corrupted: Barrage Gun jammed. 13682_ System corrupted: Enh. Autogun jammed. 13690_ Enh. Autogun destroyed. 13691_ System corrupted: Component data lost. 13699_ Chain reaction triggered in Angular Momentum Engine. 13699_ Destroyed Mak. Leg. 13701_ 9A-NI2(z) overheating. 13702_ LO-044(z) destroyed. 13702_ 9A-NI2(z) overheating. 13705_ Mak. Leg melted. 13705_ 9A-NI2(z) destroyed. 13715_ Acquired 26 matter. 13722_ OPZK1CTL6NGXWVS